[Event "*** Titled Tuesday Blitz"]
[Site "Chess.com"]
[Date "2021.02.09"]
[Round "11"]
[White "Sanyura"]
[Black "GadimbayliA"]
[Result "0-1"]
[WhiteElo "2652"]
[BlackElo "2844"]
[TimeControl "180+1"]
[EndTime "12:07:25 PST"]
[Termination "GadimbayliA won by resignation"]

1. e4 {[%clk 0:03:00.9]} 1... e5 {[%clk 0:02:59.5]} 2. Nf3 {[%clk 0:03:01]} 2...
d5 {[%clk 0:02:59.2]} 3. Qe2 {[%clk 0:02:38.3]} 3... Nf6 {[%clk 0:02:54]} 4. Nc3
{[%clk 0:02:18.2]} 4... d4 {[%clk 0:02:45.2]} 5. Nd5 {[%clk 0:02:02.5]} 5...
Nxd5 {[%clk 0:02:44.4]} 6. exd5 {[%clk 0:02:03.4]} 6... Bd6 {[%clk 0:02:45.2]}
7. Qb5+ {[%clk 0:01:50.8]} 7... c6 {[%clk 0:02:36.1]} 8. Qb3 {[%clk 0:01:48.1]}
8... O-O {[%clk 0:02:33.9]} 9. Be2 {[%clk 0:01:42.3]} 9... Nd7 {[%clk
0:02:29.4]} 10. a4 {[%clk 0:00:59.7]} 10... Nc5 {[%clk 0:02:28.9]} 11. Qa2
{[%clk 0:00:59.2]} 11... cxd5 {[%clk 0:02:28.7]} 12. b4 {[%clk 0:00:56.6]} 12...
Na6 {[%clk 0:02:28.3]} 13. c3 {[%clk 0:00:55.1]} 13... d3 {[%clk 0:02:04.2]} 14.
Bf1 {[%clk 0:00:50.5]} 14... Nc7 {[%clk 0:01:57.9]} 15. g3 {[%clk 0:00:44.3]}
15... e4 {[%clk 0:01:56.2]} 16. Nd4 {[%clk 0:00:44.6]} 16... Ne6 {[%clk
0:01:52.5]} 17. Nf5 {[%clk 0:00:43.6]} 17... Be5 {[%clk 0:01:47.3]} 18. Bg2
{[%clk 0:00:40.3]} 18... Ng5 {[%clk 0:01:38.1]} 19. Ne3 {[%clk 0:00:37]} 19...
Be6 {[%clk 0:01:36.8]} 20. Qb1 {[%clk 0:00:32.5]} 20... d4 {[%clk 0:01:24.5]}
21. cxd4 {[%clk 0:00:31.7]} 21... Qxd4 {[%clk 0:01:25.4]} 22. Ra3 {[%clk
0:00:30.8]} 22... Rac8 {[%clk 0:01:21.8]} 23. O-O {[%clk 0:00:30.2]} 23... Rc7
{[%clk 0:01:01.6]} 24. Nd1 {[%clk 0:00:25]} 24... Rc2 {[%clk 0:00:54.7]} 25. Rc3
{[%clk 0:00:22.5]} 25... Rc8 {[%clk 0:00:49.6]} 26. Bb2 {[%clk 0:00:20.7]} 26...
Qxb4 {[%clk 0:00:42.5]} 27. Rxc8+ {[%clk 0:00:20.5]} 27... Bxc8 {[%clk
0:00:42.2]} 28. Qa2 {[%clk 0:00:11]} 28... Bxb2 {[%clk 0:00:37.4]} 29. Qd5
{[%clk 0:00:10.7]} 29... Bf6 {[%clk 0:00:35.2]} 30. h4 {[%clk 0:00:07.5]} 30...
Nf3+ {[%clk 0:00:25.2]} 31. Bxf3 {[%clk 0:00:07.5]} 31... exf3 {[%clk
0:00:25.8]} 32. Qxd3 {[%clk 0:00:05]} 32... Rxd2 {[%clk 0:00:26]} 33. Qxf3
{[%clk 0:00:04.4]} 33... Bg4 {[%clk 0:00:26.4]} 34. Qf4 {[%clk 0:00:04.3]} 34...
Qxf4 {[%clk 0:00:25.8]} 0-1

[Event "*** Titled Tuesday Blitz"]
[Site "Chess.com"]
[Date "2021.02.09"]
[Round "11"]
[White "Artem_Sadovsky"]
[Black "QuintilianoR"]
[Result "1-0"]
[WhiteElo "2558"]
[BlackElo "2665"]
[TimeControl "180+1"]
[EndTime "12:07:26 PST"]
[Termination "Artem_Sadovsky won by resignation"]

1. Nf3 {[%clk 0:03:00.2]} 1... Nf6 {[%clk 0:02:59.6]} 2. c4 {[%clk 0:03:00.4]}
2... e6 {[%clk 0:02:59.6]} 3. b3 {[%clk 0:03:00.6]} 3... d5 {[%clk 0:02:59.8]}
4. Bb2 {[%clk 0:03:01]} 4... Be7 {[%clk 0:03:00.4]} 5. g3 {[%clk 0:03:00.2]}
5... O-O {[%clk 0:03:00.5]} 6. Bg2 {[%clk 0:03:00.7]} 6... c5 {[%clk 0:02:59.8]}
7. O-O {[%clk 0:03:01.1]} 7... Nc6 {[%clk 0:02:59.4]} 8. cxd5 {[%clk 0:03:01.6]}
8... exd5 {[%clk 0:02:58.6]} 9. d4 {[%clk 0:03:01.8]} 9... Ne4 {[%clk
0:02:58.7]} 10. dxc5 {[%clk 0:02:54.1]} 10... Bxc5 {[%clk 0:02:57]} 11. Nc3
{[%clk 0:02:50.4]} 11... Nxc3 {[%clk 0:02:56.7]} 12. Bxc3 {[%clk 0:02:51.3]}
12... d4 {[%clk 0:02:57.6]} 13. Bb2 {[%clk 0:02:47.5]} 13... Bf5 {[%clk
0:02:46.5]} 14. Rc1 {[%clk 0:02:47.4]} 14... Qd6 {[%clk 0:02:42]} 15. Qd2 {[%clk
0:02:41.7]} 15... Rad8 {[%clk 0:02:38.3]} 16. Qg5 {[%clk 0:02:34.1]} 16... g6
{[%clk 0:02:27.2]} 17. Qh6 {[%clk 0:02:22.3]} 17... f6 {[%clk 0:02:25]} 18. Nh4
{[%clk 0:02:17.8]} 18... Bc8 {[%clk 0:01:51.4]} 19. Nxg6 {[%clk 0:02:16.4]}
19... hxg6 {[%clk 0:01:50.9]} 20. Qxg6+ {[%clk 0:02:17]} 20... Kh8 {[%clk
0:01:51.4]} 21. Qh6+ {[%clk 0:02:17.6]} 21... Kg8 {[%clk 0:01:51.6]} 22. Qg6+
{[%clk 0:02:18.2]} 22... Kh8 {[%clk 0:01:48.1]} 23. Qh5+ {[%clk 0:02:15.2]}
23... Kg7 {[%clk 0:01:48]} 24. Qxc5 {[%clk 0:02:10.4]} 24... Qxc5 {[%clk
0:01:47]} 25. Rxc5 {[%clk 0:02:10.8]} 25... Rfe8 {[%clk 0:01:47.6]} 26. Bxc6
{[%clk 0:01:43.1]} 26... bxc6 {[%clk 0:01:48.5]} 27. Rxc6 {[%clk 0:01:43.6]}
27... Rxe2 {[%clk 0:01:45.7]} 28. Bxd4 {[%clk 0:01:43.8]} 28... Rxd4 {[%clk
0:01:39.3]} 29. Rxc8 {[%clk 0:01:41.9]} 29... Rxa2 {[%clk 0:01:40.2]} 30. Rb8
{[%clk 0:01:30.9]} 30... Rdd2 {[%clk 0:01:36.7]} 31. h4 {[%clk 0:01:24.6]} 31...
Rdb2 {[%clk 0:01:30.3]} 32. Kg2 {[%clk 0:01:21.5]} 32... Kg6 {[%clk 0:01:30.2]}
33. g4 {[%clk 0:01:16.8]} 33... f5 {[%clk 0:01:28.1]} 34. g5 {[%clk 0:01:09.6]}
34... Kh5 {[%clk 0:00:48.8]} 35. Rh8+ {[%clk 0:00:56.8]} 35... Kg6 {[%clk
0:00:48.6]} 36. Rg8+ {[%clk 0:00:52.9]} 36... Kf7 {[%clk 0:00:45.3]} 37. Rb8
{[%clk 0:00:51.2]} 37... Kg6 {[%clk 0:00:43.7]} 38. Kg3 {[%clk 0:00:49.9]} 38...
Ra3 {[%clk 0:00:40.4]} 39. f3 {[%clk 0:00:46.2]} 39... Raxb3 {[%clk 0:00:15.8]}
40. Rxb3 {[%clk 0:00:47.1]} 40... Rxb3 {[%clk 0:00:16.7]} 41. Ra1 {[%clk
0:00:46.9]} 41... Kh5 {[%clk 0:00:07.9]} 42. Rxa7 {[%clk 0:00:40.3]} 42... f4+
{[%clk 0:00:07.3]} 43. Kxf4 {[%clk 0:00:37.5]} 43... Rb4+ {[%clk 0:00:05.3]} 44.
Kg3 {[%clk 0:00:37.3]} 1-0

[Event "*** Titled Tuesday Blitz"]
[Site "Chess.com"]
[Date "2021.02.09"]
[Round "11"]
[White "LilRag"]
[Black "queen_iryna"]
[Result "0-1"]
[WhiteElo "2589"]
[BlackElo "2388"]
[TimeControl "180+1"]
[EndTime "12:07:27 PST"]
[Termination "queen_iryna won by resignation"]

1. Nf3 {[%clk 0:03:00.9]} 1... d5 {[%clk 0:02:59.6]} 2. e3 {[%clk 0:02:56.7]}
2... Nf6 {[%clk 0:02:58.1]} 3. b3 {[%clk 0:02:55.1]} 3... c6 {[%clk 0:02:54.5]}
4. Bb2 {[%clk 0:02:55.2]} 4... Bg4 {[%clk 0:02:52.8]} 5. Be2 {[%clk 0:02:55.4]}
5... Nbd7 {[%clk 0:02:52.2]} 6. O-O {[%clk 0:02:55.5]} 6... e6 {[%clk
0:02:48.7]} 7. c4 {[%clk 0:02:55.9]} 7... Be7 {[%clk 0:02:45.7]} 8. Nc3 {[%clk
0:02:54.5]} 8... O-O {[%clk 0:02:45.3]} 9. Rc1 {[%clk 0:02:53.8]} 9... h6 {[%clk
0:02:41.1]} 10. d4 {[%clk 0:02:45.1]} 10... Bd6 {[%clk 0:02:28]} 11. h3 {[%clk
0:02:44.5]} 11... Bf5 {[%clk 0:02:26.6]} 12. cxd5 {[%clk 0:02:35.3]} 12... exd5
{[%clk 0:02:26]} 13. Bd3 {[%clk 0:02:33.9]} 13... Ne4 {[%clk 0:02:19.7]} 14.
Bxe4 {[%clk 0:02:26.9]} 14... dxe4 {[%clk 0:02:12.1]} 15. Nd2 {[%clk 0:02:27]}
15... Qe7 {[%clk 0:02:11.1]} 16. Nc4 {[%clk 0:02:21.1]} 16... Bc7 {[%clk
0:01:57]} 17. d5 {[%clk 0:02:21.1]} 17... Qg5 {[%clk 0:01:54.3]} 18. f4 {[%clk
0:02:11.8]} 18... exf3 {[%clk 0:01:47.8]} 19. Qxf3 {[%clk 0:02:12.2]} 19... Bd3
{[%clk 0:01:41.3]} 20. dxc6 {[%clk 0:01:59]} 20... Bxf1 {[%clk 0:01:40.7]} 21.
cxd7 {[%clk 0:01:58.6]} 21... Bxc4 {[%clk 0:01:40.2]} 22. bxc4 {[%clk
0:01:58.2]} 22... Qe5 {[%clk 0:01:22.8]} 23. Rd1 {[%clk 0:01:52.4]} 23... Rad8
{[%clk 0:01:18.3]} 24. Ba1 {[%clk 0:01:45.6]} 24... Bb6 {[%clk 0:01:10]} 25. Nd5
{[%clk 0:01:38.4]} 25... Qg5 {[%clk 0:01:09.4]} 26. g3 {[%clk 0:01:22.7]} 26...
Kh8 {[%clk 0:00:35]} 27. h4 {[%clk 0:01:16.6]} 27... Qg6 {[%clk 0:00:32.1]} 28.
Ne7 {[%clk 0:01:15.1]} 28... Qe6 {[%clk 0:00:29]} 29. Nf5 {[%clk 0:01:10.6]}
29... f6 {[%clk 0:00:26.4]} 30. Rd6 {[%clk 0:00:18.2]} 30... Qxc4 {[%clk
0:00:18.7]} 31. Ne7 {[%clk 0:00:16.7]} 31... Qc1+ {[%clk 0:00:17.8]} 32. Rd1
{[%clk 0:00:14.5]} 32... Qxe3+ {[%clk 0:00:17.2]} 33. Qxe3 {[%clk 0:00:15.1]}
33... Bxe3+ {[%clk 0:00:17.8]} 34. Kg2 {[%clk 0:00:15.8]} 34... Kh7 {[%clk
0:00:17.3]} 35. Nf5 {[%clk 0:00:13.1]} 35... Bb6 {[%clk 0:00:17.2]} 36. h5
{[%clk 0:00:08]} 36... Rf7 {[%clk 0:00:17.3]} 37. Re1 {[%clk 0:00:07.9]} 37...
Rfxd7 {[%clk 0:00:16.8]} 38. Kh3 {[%clk 0:00:08.6]} 38... Rd1 {[%clk 0:00:16]}
0-1

[Event "*** Titled Tuesday Blitz"]
[Site "Chess.com"]
[Date "2021.02.09"]
[Round "11"]
[White "Mihnea2017"]
[Black "IljaJoke"]
[Result "1-0"]
[WhiteElo "2423"]
[BlackElo "2495"]
[TimeControl "180+1"]
[EndTime "12:07:28 PST"]
[Termination "Mihnea2017 won by resignation"]

1. e4 {[%clk 0:03:00.9]} 1... e5 {[%clk 0:03:00]} 2. Nf3 {[%clk 0:03:00.7]} 2...
Nf6 {[%clk 0:03:00.6]} 3. Nxe5 {[%clk 0:02:59]} 3... Nc6 {[%clk 0:03:00.9]} 4.
Nxc6 {[%clk 0:02:58]} 4... dxc6 {[%clk 0:03:01.8]} 5. d3 {[%clk 0:02:57.6]} 5...
Bc5 {[%clk 0:03:01.7]} 6. Be2 {[%clk 0:02:56.6]} 6... h5 {[%clk 0:02:59.9]} 7.
c3 {[%clk 0:02:56.4]} 7... Ng4 {[%clk 0:02:59.4]} 8. d4 {[%clk 0:02:55.5]} 8...
Qh4 {[%clk 0:02:58.8]} 9. g3 {[%clk 0:02:53.5]} 9... Qf6 {[%clk 0:02:58.9]} 10.
Bf3 {[%clk 0:02:20.3]} 10... Bb6 {[%clk 0:02:35.7]} 11. Nd2 {[%clk 0:02:16.6]}
11... Be6 {[%clk 0:02:31]} 12. h3 {[%clk 0:02:11.3]} 12... Nxf2 {[%clk
0:01:17.3]} 13. Kxf2 {[%clk 0:02:11]} 13... g5 {[%clk 0:01:17.5]} 14. Kg2 {[%clk
0:01:46.1]} 14... O-O-O {[%clk 0:01:09.8]} 15. e5 {[%clk 0:01:39.5]} 15... Qg6
{[%clk 0:01:10.1]} 16. Be4 {[%clk 0:01:34.8]} 16... f5 {[%clk 0:01:07.6]} 17.
exf6 {[%clk 0:01:34.4]} 17... Qxf6 {[%clk 0:01:08]} 18. Qf3 {[%clk 0:01:30.8]}
18... Qg7 {[%clk 0:01:04.5]} 19. Bf5 {[%clk 0:01:16.1]} 19... Bxf5 {[%clk
0:00:57.9]} 20. Qxf5+ {[%clk 0:01:17]} 20... Kb8 {[%clk 0:00:58.4]} 21. Nf3
{[%clk 0:01:14.5]} 21... g4 {[%clk 0:00:52.7]} 22. hxg4 {[%clk 0:01:05.1]} 22...
hxg4 {[%clk 0:00:53.6]} 23. Ne5 {[%clk 0:00:54.8]} 23... Rxh1 {[%clk 0:00:47.3]}
24. Kxh1 {[%clk 0:00:54.6]} 24... Rh8+ {[%clk 0:00:35]} 25. Kg2 {[%clk
0:00:52.3]} 25... Qg8 {[%clk 0:00:30]} 26. Nd7+ {[%clk 0:00:43.9]} 26... Ka8
{[%clk 0:00:28.3]} 27. Bf4 {[%clk 0:00:39]} 27... Qc4 {[%clk 0:00:16.3]} 28. Re1
{[%clk 0:00:35.1]} 28... Qxa2 {[%clk 0:00:15.8]} 29. Qe5 {[%clk 0:00:22.6]}
29... a5 {[%clk 0:00:09.5]} 30. Qxh8+ {[%clk 0:00:22.1]} 30... Ka7 {[%clk
0:00:07.6]} 31. Qb8+ {[%clk 0:00:19.1]} 31... Ka6 {[%clk 0:00:07.8]} 32. Re2
{[%clk 0:00:17]} 32... Qb1 {[%clk 0:00:07.1]} 33. Nxb6 {[%clk 0:00:16.5]} 33...
cxb6 {[%clk 0:00:06.8]} 34. Qe5 {[%clk 0:00:15.2]} 34... b5 {[%clk 0:00:05]} 35.
Qe4 {[%clk 0:00:14.9]} 35... a4 {[%clk 0:00:05.1]} 1-0

[Event "*** Titled Tuesday Blitz"]
[Site "Chess.com"]
[Date "2021.02.09"]
[Round "11"]
[White "karinachess1"]
[Black "nrvisakh"]
[Result "0-1"]
[WhiteElo "2549"]
[BlackElo "2771"]
[TimeControl "180+1"]
[EndTime "12:07:41 PST"]
[Termination "nrvisakh won on time"]

1. d4 {[%clk 0:03:00.9]} 1... Nf6 {[%clk 0:02:59.3]} 2. Nf3 {[%clk 0:03:00.4]}
2... g6 {[%clk 0:02:59.1]} 3. g3 {[%clk 0:03:00.3]} 3... Bg7 {[%clk 0:02:59.4]}
4. Bg2 {[%clk 0:03:00.7]} 4... O-O {[%clk 0:02:59.9]} 5. O-O {[%clk 0:03:00.8]}
5... d5 {[%clk 0:02:59.9]} 6. c4 {[%clk 0:02:53.6]} 6... dxc4 {[%clk 0:02:57.2]}
7. Qc2 {[%clk 0:02:25.3]} 7... a6 {[%clk 0:02:38.5]} 8. Qxc4 {[%clk 0:02:16.8]}
8... b5 {[%clk 0:02:37.8]} 9. Qc2 {[%clk 0:02:17.4]} 9... Bb7 {[%clk 0:02:37.9]}
10. Nbd2 {[%clk 0:02:06.6]} 10... Nc6 {[%clk 0:02:15.5]} 11. Nb3 {[%clk
0:02:01.7]} 11... Nb4 {[%clk 0:02:15.2]} 12. Qd1 {[%clk 0:01:55.8]} 12... Bd5
{[%clk 0:01:55.5]} 13. a3 {[%clk 0:01:44.9]} 13... Nc6 {[%clk 0:01:53.5]} 14.
Nc5 {[%clk 0:01:34.1]} 14... Nd7 {[%clk 0:01:46.8]} 15. Nxd7 {[%clk 0:01:17.7]}
15... Qxd7 {[%clk 0:01:46.3]} 16. e3 {[%clk 0:01:11]} 16... Rad8 {[%clk
0:01:44]} 17. Bd2 {[%clk 0:00:59.2]} 17... e5 {[%clk 0:01:40.9]} 18. Bc3 {[%clk
0:00:53.4]} 18... exd4 {[%clk 0:01:29.5]} 19. exd4 {[%clk 0:00:42.9]} 19... Bc4
{[%clk 0:01:05.6]} 20. Re1 {[%clk 0:00:40.1]} 20... Nxd4 {[%clk 0:01:05.7]} 21.
Nxd4 {[%clk 0:00:33.9]} 21... Bxd4 {[%clk 0:01:06.6]} 22. Qc1 {[%clk 0:00:19.7]}
22... Bxc3 {[%clk 0:00:53.4]} 23. Qxc3 {[%clk 0:00:20.6]} 23... Qd4 {[%clk
0:00:52.6]} 24. Qc2 {[%clk 0:00:09.8]} 24... Qd2 {[%clk 0:00:42.6]} 25. Rac1
{[%clk 0:00:09.1]} 25... Qxc2 {[%clk 0:00:40.9]} 26. Rxc2 {[%clk 0:00:10]} 26...
Rfe8 {[%clk 0:00:40.4]} 27. Rxe8+ {[%clk 0:00:09.5]} 27... Rxe8 {[%clk
0:00:41.3]} 28. h3 {[%clk 0:00:09.8]} 28... Re1+ {[%clk 0:00:40.9]} 29. Kh2
{[%clk 0:00:10.2]} 29... Re2 {[%clk 0:00:39.1]} 30. Rxe2 {[%clk 0:00:08.9]}
30... Bxe2 {[%clk 0:00:40]} 31. b4 {[%clk 0:00:08.8]} 31... Kf8 {[%clk
0:00:34.3]} 32. Bb7 {[%clk 0:00:09]} 32... Ke7 {[%clk 0:00:34.5]} 33. Bxa6
{[%clk 0:00:09.4]} 33... Kd6 {[%clk 0:00:28.3]} 34. a4 {[%clk 0:00:08.6]} 34...
c6 {[%clk 0:00:27.9]} 35. Kg1 {[%clk 0:00:06.7]} 35... Kd5 {[%clk 0:00:24.3]}
36. axb5 {[%clk 0:00:02.3]} 36... Bxb5 {[%clk 0:00:23.3]} 37. Bc8 {[%clk
0:00:01.2]} 37... Kc4 {[%clk 0:00:22.2]} 38. f4 {[%clk 0:00:01.9]} 38... Kxb4
{[%clk 0:00:22.4]} 0-1

[Event "*** Titled Tuesday Blitz"]
[Site "Chess.com"]
[Date "2021.02.09"]
[Round "11"]
[White "YIYUKI"]
[Black "Piccadilly123"]
[Result "1-0"]
[WhiteElo "2166"]
[BlackElo "2164"]
[TimeControl "180+1"]
[EndTime "12:07:41 PST"]
[Termination "YIYUKI won by checkmate"]

1. d4 {[%clk 0:02:41.6]} 1... Nf6 {[%clk 0:02:56.4]} 2. c4 {[%clk 0:02:41]} 2...
e5 {[%clk 0:02:53.6]} 3. dxe5 {[%clk 0:02:40]} 3... Ng4 {[%clk 0:02:53.4]} 4.
Bf4 {[%clk 0:02:40.5]} 4... Nc6 {[%clk 0:02:52.8]} 5. Nf3 {[%clk 0:02:40]} 5...
Bb4+ {[%clk 0:02:53.3]} 6. Nbd2 {[%clk 0:02:38.8]} 6... Qe7 {[%clk 0:02:53.6]}
7. a3 {[%clk 0:02:37]} 7... Ncxe5 {[%clk 0:02:53.6]} 8. Nxe5 {[%clk 0:02:27.6]}
8... Nxe5 {[%clk 0:02:53.5]} 9. e3 {[%clk 0:02:26.9]} 9... Bxd2+ {[%clk
0:02:51.9]} 10. Qxd2 {[%clk 0:02:27.2]} 10... O-O {[%clk 0:02:51.9]} 11. Be2
{[%clk 0:02:27.5]} 11... d6 {[%clk 0:02:50]} 12. O-O {[%clk 0:02:27.5]} 12... a5
{[%clk 0:02:49.2]} 13. b3 {[%clk 0:02:26.6]} 13... Bd7 {[%clk 0:02:46.9]} 14. h3
{[%clk 0:02:25.9]} 14... Bc6 {[%clk 0:02:47.1]} 15. Qd4 {[%clk 0:02:15.4]} 15...
b6 {[%clk 0:02:42]} 16. f3 {[%clk 0:02:05.4]} 16... Rfe8 {[%clk 0:02:37.8]} 17.
e4 {[%clk 0:02:03.5]} 17... Qf6 {[%clk 0:02:36]} 18. Be3 {[%clk 0:02:01.2]}
18... Nd7 {[%clk 0:02:29.5]} 19. Qxf6 {[%clk 0:02:00.2]} 19... Nxf6 {[%clk
0:02:30.4]} 20. Rfd1 {[%clk 0:01:57.1]} 20... Nd7 {[%clk 0:02:24.3]} 21. Kf2
{[%clk 0:01:56]} 21... Nc5 {[%clk 0:02:21.6]} 22. Rab1 {[%clk 0:01:54.2]} 22...
f6 {[%clk 0:02:17.8]} 23. g4 {[%clk 0:01:54.1]} 23... Kf7 {[%clk 0:02:17.3]} 24.
h4 {[%clk 0:01:54.3]} 24... Nd7 {[%clk 0:02:14.5]} 25. Rd2 {[%clk 0:01:53.4]}
25... Ne5 {[%clk 0:02:14.6]} 26. Rg1 {[%clk 0:01:49.2]} 26... g6 {[%clk
0:02:13.8]} 27. g5 {[%clk 0:01:42.7]} 27... Rf8 {[%clk 0:01:55.3]} 28. Bd4
{[%clk 0:01:36.6]} 28... Rae8 {[%clk 0:01:49.4]} 29. Rh1 {[%clk 0:01:18.6]}
29... Kg8 {[%clk 0:01:41.3]} 30. Kg3 {[%clk 0:01:17.9]} 30... f5 {[%clk
0:01:37.7]} 31. f4 {[%clk 0:01:14.3]} 31... Bxe4 {[%clk 0:01:36.8]} 32. Rh2
{[%clk 0:01:05.9]} 32... Nc6 {[%clk 0:01:33.2]} 33. Bc3 {[%clk 0:01:06.1]} 33...
Re7 {[%clk 0:01:30.8]} 34. h5 {[%clk 0:01:06.4]} 34... Kf7 {[%clk 0:00:53.4]}
35. Bf1 {[%clk 0:01:02.8]} 35... Ke6 {[%clk 0:00:51.2]} 36. hxg6 {[%clk
0:00:57.1]} 36... hxg6 {[%clk 0:00:51.1]} 37. Rh6 {[%clk 0:00:57.8]} 37... Rg8
{[%clk 0:00:49.1]} 38. Rdh2 {[%clk 0:00:57.5]} 38... Rf7 {[%clk 0:00:40.8]} 39.
b4 {[%clk 0:00:55.5]} 39... axb4 {[%clk 0:00:39.5]} 40. axb4 {[%clk 0:00:55.4]}
40... Kd7 {[%clk 0:00:40]} 41. Be2 {[%clk 0:00:55.2]} 41... Nd8 {[%clk
0:00:32.7]} 42. Rh7 {[%clk 0:00:55]} 42... Rxh7 {[%clk 0:00:30.3]} 43. Rxh7+
{[%clk 0:00:54.6]} 43... Kc8 {[%clk 0:00:29.3]} 44. c5 {[%clk 0:00:54]} 44...
bxc5 {[%clk 0:00:26.1]} 45. bxc5 {[%clk 0:00:54]} 45... d5 {[%clk 0:00:26.1]}
46. Be5 {[%clk 0:00:51.9]} 46... Ne6 {[%clk 0:00:11.9]} 47. Bb5 {[%clk
0:00:51.8]} 47... d4 {[%clk 0:00:09.1]} 48. Bd7+ {[%clk 0:00:51.5]} 48... Kb7
{[%clk 0:00:09.4]} 49. Bxe6 {[%clk 0:00:51.5]} 49... Rd8 {[%clk 0:00:08.9]} 50.
Rxc7+ {[%clk 0:00:49.6]} 50... Ka6 {[%clk 0:00:09.5]} 51. Bc4+ {[%clk
0:00:47.3]} 51... Ka5 {[%clk 0:00:08.4]} 52. Rb7 {[%clk 0:00:47.2]} 52... d3
{[%clk 0:00:07.9]} 53. Bc3+ {[%clk 0:00:46.1]} 53... Ka4 {[%clk 0:00:05.5]} 54.
Ra7# {[%clk 0:00:46.4]} 1-0

[Event "*** Titled Tuesday Blitz"]
[Site "Chess.com"]
[Date "2021.02.09"]
[Round "11"]
[White "publicaccountcze"]
[Black "mr65"]
[Result "0-1"]
[WhiteElo "2231"]
[BlackElo "2118"]
[TimeControl "180+1"]
[EndTime "12:07:42 PST"]
[Termination "mr65 won on time"]

1. d4 {[%clk 0:03:00.9]} 1... Nf6 {[%clk 0:02:59.5]} 2. c4 {[%clk 0:03:01.8]}
2... g6 {[%clk 0:02:59.2]} 3. Nc3 {[%clk 0:03:01.4]} 3... Bg7 {[%clk 0:02:59.2]}
4. e4 {[%clk 0:03:01.8]} 4... d6 {[%clk 0:02:59.3]} 5. Bd3 {[%clk 0:03:02.1]}
5... O-O {[%clk 0:02:58.7]} 6. Nge2 {[%clk 0:03:02.6]} 6... e5 {[%clk
0:02:57.1]} 7. d5 {[%clk 0:03:01.9]} 7... a5 {[%clk 0:02:55.5]} 8. O-O {[%clk
0:03:01.9]} 8... Na6 {[%clk 0:02:55.4]} 9. Bg5 {[%clk 0:03:01.7]} 9... h6 {[%clk
0:02:54.2]} 10. Be3 {[%clk 0:03:01.3]} 10... b6 {[%clk 0:02:52.8]} 11. f3 {[%clk
0:02:51.3]} 11... Nc5 {[%clk 0:02:50.8]} 12. Bc2 {[%clk 0:02:49.2]} 12... Nh5
{[%clk 0:02:50.1]} 13. Qd2 {[%clk 0:02:48.5]} 13... Kh7 {[%clk 0:02:48.6]} 14.
Rad1 {[%clk 0:02:43.8]} 14... a4 {[%clk 0:02:44.9]} 15. Bxc5 {[%clk 0:02:37.8]}
15... bxc5 {[%clk 0:02:43.9]} 16. Bxa4 {[%clk 0:02:37.4]} 16... f5 {[%clk
0:02:34.8]} 17. a3 {[%clk 0:02:34.8]} 17... f4 {[%clk 0:02:32.6]} 18. Bc2 {[%clk
0:02:21.3]} 18... g5 {[%clk 0:02:29.9]} 19. h3 {[%clk 0:02:16.3]} 19... Kh8
{[%clk 0:02:26.8]} 20. Nb5 {[%clk 0:02:11.8]} 20... Nf6 {[%clk 0:02:20.7]} 21.
Kf2 {[%clk 0:02:00.6]} 21... h5 {[%clk 0:02:15.3]} 22. Rh1 {[%clk 0:01:58.1]}
22... Kg8 {[%clk 0:02:14.8]} 23. g4 {[%clk 0:01:43.4]} 23... fxg3+ {[%clk
0:02:11.7]} 24. Nxg3 {[%clk 0:01:42.1]} 24... g4 {[%clk 0:02:05.3]} 25. h4
{[%clk 0:01:20]} 25... Bd7 {[%clk 0:01:57.3]} 26. Qg5 {[%clk 0:01:17]} 26...
Bxb5 {[%clk 0:01:45.7]} 27. cxb5 {[%clk 0:01:11.9]} 27... gxf3 {[%clk
0:01:23.4]} 28. Nxh5 {[%clk 0:00:46.8]} 28... Nxh5 {[%clk 0:01:22.2]} 29. Qxh5
{[%clk 0:00:45.2]} 29... Qe8 {[%clk 0:01:13.1]} 30. Qg5 {[%clk 0:00:35]} 30...
Qd8 {[%clk 0:01:08.2]} 31. Qg6 {[%clk 0:00:33.6]} 31... Qe8 {[%clk 0:01:07]} 32.
Rdg1 {[%clk 0:00:29.7]} 32... Qxg6 {[%clk 0:01:05.7]} 33. Rxg6 {[%clk
0:00:28.6]} 33... Kf7 {[%clk 0:00:59.5]} 34. h5 {[%clk 0:00:25.9]} 34... Rh8
{[%clk 0:00:52.7]} 35. Kxf3 {[%clk 0:00:15.2]} 35... Raf8 {[%clk 0:00:41.2]} 36.
Ke3 {[%clk 0:00:12.5]} 36... Bh6+ {[%clk 0:00:37.9]} 37. Kd3 {[%clk 0:00:12.3]}
37... Ke7 {[%clk 0:00:37.4]} 38. Bd1 {[%clk 0:00:08.4]} 38... Rf2 {[%clk
0:00:32.8]} 39. Be2 {[%clk 0:00:06]} 39... c4+ {[%clk 0:00:27.2]} 40. Kxc4
{[%clk 0:00:02.9]} 40... Rxe2 {[%clk 0:00:27]} 41. b3 {[%clk 0:00:01]} 41...
Rxe4+ {[%clk 0:00:24.2]} 0-1